bitfinex/quotes_BTCUSD_20260308
["timestamp","ask_amount","ask_price","bid_price","bid_amount"]
[1773013294279,0.07545547,66265.0,66256.0,0.02452129]
[1773013295309,0.28316813,66263.0,66254.0,0.07558541]
[1773013295527,0.02237474,66262.0,66254.0,0.07558541]
[1773013296334,0.07545916,66261.0,66254.0,0.07558541]
[1773013296733,0.07545916,66261.0,66254.0,0.07710541]
[1773013297711,0.07545916,66261.0,66255.0,0.0002]
[1773013303298,0.07545634,66264.0,66256.0,0.27719392]
[1773013303533,0.07545634,66264.0,66257.0,0.02231961]
[1773013304884,0.07545634,66264.0,66255.0,0.0002]
[1773013305470,0.07541634,66264.0,66248.0,0.0002]
[1773013305836,0.02340723,66257.0,66230.0,0.0090069]
[1773013306021,0.02340723,66257.0,66224.0,0.00023]
[1773013306022,0.02340723,66248.0,66224.0,0.00023]
[1773013306195,0.02340723,66244.0,66225.0,0.00152]
[1773013306395,0.00878852,66247.0,66225.0,0.00152]
[1773013306396,0.28316813,66241.0,66225.0,0.00152]
[1773013306597,0.00152,66240.0,66227.0,0.02231961]
[1773013306775,0.00152,66240.0,66228.0,0.27719392]
[1773013307013,0.00152,66240.0,66229.0,0.02231961]
[1773013307212,0.07548423,66239.0,66229.0,0.02231961]
[1773013308197,0.07548423,66239.0,66226.0,0.07549883]
[1773013308365,0.07548423,66239.0,66225.0,0.07549933]
[1773013308571,0.09889146,66239.0,66227.0,0.00152]
[1773013309912,0.07548423,66242.0,66230.0,0.02231961]
[1773013311582,0.02340723,66241.0,66228.0,0.07549676]
[1773013311782,0.02340723,66238.0,66229.0,0.00152]
[1773013311990,0.07548423,66239.0,66229.0,0.00152]
[1773013312202,0.07548194,66243.0,66232.0,0.02231961]
[1773013312446,0.00022001,66240.0,66233.0,0.27719392]
[1773013312649,0.075476,66247.0,66235.0,0.27719392]
[1773013312811,0.075476,66247.0,66236.0,0.02383961]
[1773013313011,0.07569601,66247.0,66236.0,0.02383961]
[1773013314042,0.07569601,66247.0,66237.0,0.07548651]
[1773013314406,0.07569601,66247.0,66236.0,0.09932651]
[1773013314609,0.28316813,66245.0,66227.0,0.07549723]
[1773013314784,0.02340723,66242.0,66228.0,0.00152]
[1773013315135,0.02340723,66242.0,66228.0,0.02383961]
[1773013315841,0.02340723,66241.0,66229.0,0.00152]
[1773013316145,0.07547985,66243.0,66231.0,0.02231961]
[1773013316353,0.07699967,66244.0,66233.0,0.02231961]
[1773013316553,0.07547985,66243.0,66234.0,0.02231961]
[1773013317386,0.07547985,66243.0,66235.0,0.00152]
[1773013317544,0.00011867,66245.0,66235.0,0.00152]
[1773013317748,0.07559636,66245.0,66236.0,0.02231961]
[1773013318188,0.00011867,66245.0,66237.0,0.07548651]
[1773013318390,0.00011867,66245.0,66234.0,0.07548939]
[1773013318391,0.02340723,66244.0,66234.0,0.07548939]
[1773013318603,0.02340723,66242.0,66235.0,0.00152]
[1773013318767,0.02340723,66241.0,66233.0,0.00152]
[1773013319100,0.02340723,66241.0,66234.0,0.00152]
[1773013319418,0.28316813,66240.0,66224.0,0.00023]
[1773013319637,0.28316813,66236.0,66225.0,0.00172]
[1773013319812,0.02340723,66234.0,66225.0,0.00172]
[1773013319998,0.02340723,66234.0,66225.0,0.0002]
[1773013320196,0.02340723,66234.0,66224.0,0.00023]
[1773013320197,0.02340723,66232.0,66224.0,0.00152]
[1773013320430,0.02340723,66232.0,66223.0,0.002023]
[1773013320632,0.07549106,66233.0,66223.0,0.07752537]
[1773013320827,0.07548957,66235.0,66224.0,0.02231961]
[1773013321004,0.07548957,66235.0,66225.0,0.27719392]
[1773013321207,0.00011867,66245.0,66228.0,0.02231961]
[1773013321406,0.07559622,66245.0,66231.0,0.27719392]
[1773013321638,0.07559622,66245.0,66232.0,0.02231961]
[1773013321785,0.02340723,66243.0,66233.0,0.00152]
[1773013322014,0.28316813,66242.0,66219.0,0.0002]
[1773013322197,0.28316813,66238.0,66219.0,0.0002]
[1773013322445,0.02340723,66237.0,66219.0,0.0002]
[1773013322645,0.02340723,66234.0,66212.0,0.00152]
[1773013322838,0.33184891,66237.0,66207.0,0.09784032]
[1773013322839,0.27961294,66231.0,66207.0,0.09784032]
[1773013323040,0.02340723,66228.0,66208.0,0.02383961]
[1773013323264,0.27961294,66225.0,66206.0,0.000303]
[1773013323456,0.00152,66227.0,66186.0,0.02231961]
[1773013323457,0.27961294,66218.0,66186.0,0.02231961]
[1773013323658,0.27961294,66218.0,66181.0,0.43146149]
[1773013323659,0.02340723,66206.0,66182.0,0.00152]
[1773013323963,0.27961294,66201.0,66182.0,0.00152]
[1773013324187,0.27961294,66201.0,66176.0,0.00023]
[1773013324188,0.27961294,66196.0,66176.0,0.00023]
[1773013324341,0.07553098,66198.0,66176.0,0.07578579]
[1773013324342,0.02340723,66193.0,66176.0,0.07578579]
[1773013324514,0.27961294,66190.0,66176.0,0.07618114]
[1773013324708,0.27961294,66190.0,66176.0,0.07770114]
[1773013324912,0.00152,66189.0,66159.0,0.07557515]
[1773013325120,0.00152,66189.0,66146.0,0.12151051]
[1773013325121,0.27961294,66185.0,66170.0,0.10099258]
[1773013325418,0.00152,66184.0,66170.0,0.10099192]
[1773013325642,0.28113294,66184.0,66170.0,0.10251192]
[1773013326184,0.0755481,66183.0,66170.0,0.02695]
[1773013326368,0.0755481,66183.0,66170.0,0.02691]
[1773013326567,0.34878672,66183.0,66170.0,0.02539]
[1773013326730,0.27323862,66182.0,66170.0,0.02539]
[1773013326929,0.02494853,66178.0,66152.0,0.33954479]
[1773013327144,0.27323862,66175.0,66153.0,0.00152]
[1773013327341,0.29818715,66173.0,66153.0,0.00152]
[1773013327550,0.27323862,66171.0,66153.0,0.00152]
[1773013327744,0.02494853,66170.0,66153.0,0.00152]
[1773013328071,0.02494853,66170.0,66154.0,0.00152]
[1773013328449,0.18271894,66190.0,66156.0,0.26326197]
[1773013328698,0.27323862,66184.0,66160.0,0.26326197]
[1773013328856,0.27323862,66168.0,66152.0,0.0007]
[1773013329075,0.00152,66170.0,66153.0,0.00152]
[1773013329282,0.00152,66170.0,66153.0,0.26478197]
[1773013329605,0.00152,66170.0,66153.0,0.00152]
[1773013329606,0.27323862,66169.0,66153.0,0.00152]
[1773013329962,0.00152,66170.0,66153.0,0.28964714]
[1773013330309,0.00152,66173.0,66153.0,0.28964714]
[1773013330465,0.07556066,66172.0,66154.0,0.07558121]
[1773013330673,0.27323862,66169.0,66155.0,0.00152]
[1773013330916,0.29840684,66166.0,66155.0,0.00152]
[1773013331111,0.29840684,66166.0,66154.0,0.07558121]
[1773013331613,0.07556066,66173.0,66156.0,0.28800852]
[1773013331973,0.07708066,66173.0,66158.0,0.26326197]
[1773013332507,0.00152,66177.0,66160.0,0.26326197]
[1773013332707,0.00152,66177.0,66161.0,0.00152]
[1773013333086,0.00152,66178.0,66161.0,0.26478197]
[1773013333359,0.00152,66178.0,66165.0,0.26326197]
[1773013333562,0.00152,66178.0,66162.0,0.02474655]
[1773013334192,0.07555266,66182.0,66161.0,0.00152]
[1773013334193,0.07553879,66192.0,66164.0,0.02474655]
[1773013334348,0.07553879,66192.0,66169.0,0.07556408]
[1773013334522,0.07553879,66192.0,66172.0,0.26326197]
[1773013334723,0.27323862,66191.0,66172.0,0.26326197]
[1773013335127,0.27323862,66188.0,66156.0,0.07557804]
[1773013335327,0.18271894,66190.0,66157.0,0.28800852]
[1773013335328,0.02516822,66185.0,66157.0,0.28800852]
[1773013335531,0.18271894,66170.0,66155.0,0.0002]
[1773013335806,0.27323862,66166.0,66155.0,0.0002]
[1773013335934,0.27323862,66164.0,66153.0,0.00011862]
[1773013336135,0.27323862,66164.0,66151.0,0.00152]
[1773013336136,0.27323862,66164.0,66150.0,0.02]
[1773013336338,0.27323862,66164.0,66156.0,0.001]
[1773013336339,0.07557093,66163.0,66156.0,0.001]
[1773013336559,0.07557093,66163.0,66150.0,0.02011884]
[1773013336560,0.27323862,66162.0,66151.0,0.00152]
[1773013336761,0.07557093,66164.0,66152.0,0.0755835]
[1773013336939,0.27323862,66171.0,66152.0,0.0755835]
[1773013337160,0.07556424,66169.0,66153.0,0.26326197]
[1773013337547,0.07556258,66171.0,66155.0,0.26326197]
[1773013337744,0.07555976,66173.0,66152.0,0.0755835]
[1773013337745,0.07555976,66173.0,66157.0,0.26326197]
[1773013337992,0.07555976,66173.0,66159.0,0.26326197]
[1773013338196,0.07555844,66174.0,66159.0,0.26326197]
[1773013338197,0.07555951,66175.0,66159.0,0.26326197]
[1773013338396,0.07578663,66176.0,66162.0,0.02474655]
[1773013338631,0.07578663,66176.0,66163.0,0.07557093]
[1773013338832,0.07578663,66176.0,66164.0,0.00152]
[1773013339215,0.07578663,66176.0,66165.0,0.00152]
[1773013339613,0.00023,66176.0,66165.0,0.28952852]
[1773013339787,0.07555629,66176.0,66165.0,0.28952852]
[1773013339987,0.07555629,66176.0,66166.0,0.00152]
[1773013340188,0.07555629,66176.0,66167.0,0.00152]
[1773013340520,0.07555038,66181.0,66168.0,0.07556522]
[1773013340722,0.34398025,66181.0,66169.0,0.00152]
[1773013341342,0.00152,66188.0,66170.0,0.29279454]
[1773013341510,0.07554409,66187.0,66170.0,0.29279454]
[1773013341841,0.26842987,66186.0,66168.0,0.07556522]
[1773013342025,0.29184503,66185.0,66168.0,0.07556522]
[1773013342229,0.26842987,66185.0,66169.0,0.00152]
[1773013342434,0.02341516,66183.0,66154.0,0.07558121]
[1773013342640,0.26842987,66180.0,66158.0,0.27133394]
[1773013342838,0.07554695,66184.0,66161.0,0.0229806]
[1773013343038,0.07554695,66184.0,66154.0,0.07558121]
[1773013343039,0.26842987,66183.0,66169.0,0.0002]
[1773013343239,0.07706695,66184.0,66162.0,0.0002]
[1773013343240,0.02341516,66178.0,66162.0,0.0002]
[1773013343472,0.00152,66177.0,66163.0,0.00152]
[1773013343621,0.0759423,66185.0,66167.0,0.0229806]
[1773013343622,0.07594226,66185.0,66167.0,0.0229806]
[1773013343831,0.07594226,66185.0,66163.0,0.00152]
[1773013343832,0.07594226,66185.0,66168.0,0.29279454]
[1773013344036,0.07594226,66185.0,66170.0,0.26981394]
[1773013344256,0.0755344,66195.0,66173.0,0.0229806]
[1773013344621,0.07553782,66194.0,66177.0,0.07555495]
[1773013344792,0.07553782,66194.0,66177.0,0.34536889]
[1773013345791,0.07553496,66195.0,66177.0,0.07555495]
[1773013346006,0.07553496,66195.0,66180.0,0.26981394]
[1773013346197,0.07553496,66195.0,66184.0,0.26981394]
[1773013346694,0.07553496,66195.0,66185.0,0.34535975]
[1773013347069,0.01155911,66201.0,66186.0,0.29279454]
[1773013347270,0.01155911,66201.0,66189.0,0.29279454]
[1773013347767,1e-08,66202.0,66191.0,0.26981394]
[1773013348005,0.07551729,66210.0,66194.0,0.0229806]
[1773013348267,0.26842987,66207.0,66195.0,0.00152]
[1773013348474,0.26842987,66207.0,66196.0,0.00152]
[1773013348716,0.07552185,66206.0,66196.0,0.00152]
[1773013349284,0.07552185,66206.0,66195.0,0.00152]
[1773013350096,0.07552185,66206.0,66193.0,0.07553627]
[1773013350446,0.07552185,66206.0,66194.0,0.00152]
[1773013350633,0.07552185,66206.0,66192.0,0.00152]
[1773013350634,0.26842987,66203.0,66192.0,0.00152]
[1773013350871,0.26842987,66199.0,66187.0,0.00152]
[1773013351013,0.29184503,66197.0,66187.0,0.00152]
[1773013351220,0.29184503,66197.0,66183.0,0.0755481]
[1773013351221,0.29184503,66197.0,66185.0,0.00152]
[1773013351416,0.29184503,66196.0,66185.0,0.00152]
[1773013352021,0.02341516,66196.0,66183.0,0.0755481]
[1773013352242,0.02341516,66196.0,66186.0,0.00152]
[1773013352999,0.07553212,66197.0,66186.0,0.00152]
[1773013353466,0.28170997,66196.0,66186.0,0.00152]
[1773013353628,0.30512513,66196.0,66186.0,0.00152]
[1773013354059,0.02341516,66195.0,66185.0,0.00152]
[1773013354262,0.28170997,66194.0,66180.0,0.07555148]
[1773013354435,0.28170997,66194.0,66184.0,0.00152]
[1773013355015,0.07553668,66193.0,66184.0,0.00152]
[1773013355758,0.07553668,66193.0,66181.0,0.07555019]
[1773013356045,0.07553668,66193.0,66184.0,0.00152]
[1773013356413,0.07553668,66193.0,66181.0,0.07554929]
[1773013356610,0.07553668,66193.0,66182.0,0.00152]
[1773013357001,0.07653668,66193.0,66183.0,0.00152]
[1773013357216,0.38166181,66193.0,66177.0,0.07555495]
[1773013357426,0.07553668,66193.0,66176.0,0.00023]
[1773013357619,0.07553668,66193.0,66177.0,0.00152]
[1773013357620,0.28170997,66188.0,66177.0,0.00152]
[1773013357828,0.02341516,66187.0,66176.0,0.00023]
[1773013358044,0.02341516,66185.0,66176.0,0.00175]
[1773013358451,0.00152,66192.0,66176.0,0.00175]
[1773013358656,0.07553668,66193.0,66177.0,0.02221201]
[1773013358862,0.07553668,66193.0,66179.0,0.02221201]
[1773013359067,0.07553668,66193.0,66182.0,0.28336217]
[1773013359406,0.07553668,66193.0,66183.0,0.00152]
[1773013361282,0.07553668,66193.0,66178.0,0.0755538]
[1773013361475,0.07553668,66193.0,66179.0,0.00152]
[1773013362333,0.07553668,66193.0,66179.0,0.28488217]
[1773013362554,0.07553668,66193.0,66178.0,0.0755538]
[1773013362555,0.07553668,66193.0,66182.0,0.02221201]
[1773013362753,0.07553668,66195.0,66184.0,0.02221201]
[1773013362956,0.07553668,66195.0,66185.0,0.02221201]
[1773013363182,0.0755344,66196.0,66186.0,0.00152]
[1773013363400,0.0755344,66196.0,66186.0,0.07706432]
[1773013363602,0.0755344,66196.0,66186.0,0.09927633]
[1773013363801,0.0755344,66196.0,66186.0,0.07706432]
[1773013364027,0.0755344,66196.0,66188.0,0.02221201]
[1773013364843,0.07553312,66197.0,66188.0,0.02221201]
[1773013365052,0.07553312,66197.0,66189.0,0.02221201]
[1773013365169,0.00152,66202.0,66189.0,0.02221201]
[1773013365577,0.07564486,66203.0,66189.0,0.02221201]
[1773013365817,0.07564486,66203.0,66190.0,0.02221201]
[1773013366074,0.22597787,66203.0,66190.0,0.02221201]
[1773013366309,0.07564486,66203.0,66190.0,0.02221201]
[1773013367153,0.07564486,66203.0,66190.0,0.097752]
[1773013367362,0.3049269,66202.0,66190.0,0.07553999]
[1773013367560,0.15033301,66201.0,66190.0,0.07553999]
[1773013369248,0.0755287,66200.0,66192.0,0.07553782]
[1773013370231,0.0755287,66200.0,66191.0,0.07705825]
[1773013370431,0.0755287,66200.0,66191.0,0.09927026]
[1773013370675,0.00022001,66196.0,66191.0,0.09927026]
[1773013371031,0.00022001,66196.0,66191.0,0.07705825]
[1773013371636,0.00022001,66196.0,66191.0,0.09927026]
[1773013372270,0.22586018,66202.0,66192.0,0.02221201]
[1773013372483,0.07552717,66202.0,66192.0,0.28336217]
[1773013372687,0.07564421,66203.0,66193.0,0.02221201]
[1773013373190,0.07552474,66204.0,66193.0,0.02221201]
[1773013373393,0.15055302,66206.0,66197.0,0.02221201]
[1773013373597,0.00022001,66206.0,66199.0,0.02221201]
[1773013373999,0.07552474,66204.0,66199.0,0.02221201]
[1773013374417,0.15033301,66210.0,66199.0,0.02221201]
[1773013374620,0.07551633,66211.0,66201.0,0.02221201]
[1773013375834,0.07551633,66211.0,66202.0,0.07552641]
[1773013376018,0.07551633,66211.0,66203.0,0.00152]
[1773013377362,0.07551633,66211.0,66202.0,0.07552641]
[1773013377533,0.02321693,66209.0,66193.0,0.07565523]
[1773013377745,0.28170997,66206.0,66194.0,0.00152]
[1773013378069,0.3049269,66204.0,66195.0,0.00152]
[1773013378205,0.23913761,66204.0,66195.0,0.00152]
[1773013378404,0.23913761,66204.0,66193.0,0.07553663]
[1773013378646,0.23913761,66204.0,66195.0,0.00152]
[1773013379022,0.23913761,66204.0,66189.0,0.02221201]
[1773013379023,0.21592068,66204.0,66187.0,0.07554273]
[1773013379251,0.28170997,66200.0,66186.0,0.0002]
[1773013379429,0.02321693,66197.0,66188.0,0.00152]
[1773013379629,0.28170997,66196.0,66186.0,0.07574462]
[1773013379828,0.0755344,66195.0,66187.0,0.07554338]
[1773013380032,0.02321693,66193.0,66177.0,0.0002]
[1773013380250,0.3049269,66191.0,66178.0,0.07555361]
[1773013380454,0.02321693,66190.0,66179.0,0.0757523]
[1773013380653,0.07705234,66197.0,66180.0,0.02373201]
[1773013380852,0.07553234,66197.0,66180.0,0.28488217]
[1773013381073,0.07553234,66197.0,66182.0,0.02221201]
[1773013381260,0.28170997,66195.0,66183.0,0.00152]
[1773013381462,0.28170997,66195.0,66179.0,0.0757523]
[1773013381463,0.28170997,66193.0,66184.0,0.00152]
[1773013381758,0.3049269,66192.0,66183.0,0.00152]
[1773013381920,0.38046515,66192.0,66184.0,0.07554695]
[1773013382119,0.0755211,66207.0,66184.0,0.07554695]
[1773013382120,0.07552557,66203.0,66186.0,0.28336217]
[1773013382388,0.28170997,66200.0,66185.0,0.00152]
[1773013382567,0.15061471,66199.0,66185.0,0.02373201]
[1773013382766,0.3049269,66199.0,66185.0,0.02373201]
[1773013384648,0.3049269,66199.0,66186.0,0.07554467]
[1773013384850,0.07564299,66204.0,66187.0,0.02221201]
[1773013385071,0.07564299,66204.0,66189.0,0.02221201]
[1773013385502,0.07552428,66204.0,66189.0,0.02221201]
[1773013386282,0.0755228,66206.0,66191.0,0.02221201]
[1773013386480,0.0755228,66206.0,66193.0,0.02221201]
[1773013386651,0.07551871,66209.0,66194.0,0.07553554]
[1773013386859,0.02420931,66208.0,66194.0,0.07553554]
[1773013387059,0.02420931,66208.0,66194.0,0.09912823]
[1773013387252,0.15058371,66209.0,66195.0,0.02359269]
[1773013387468,0.00022001,66211.0,66197.0,0.02359269]
[1773013387668,0.00022001,66211.0,66199.0,0.02359269]
[1773013387911,0.07573439,66213.0,66201.0,0.27117249]
[1773013387912,0.00022001,66213.0,66201.0,0.27117249]
[1773013388111,0.00022001,66213.0,66203.0,0.02359269]
[1773013388378,0.35934496,66213.0,66195.0,0.02359269]
[1773013388574,0.35934496,66213.0,66197.0,0.02359269]
[1773013388791,0.35934496,66213.0,66199.0,0.02426984]
[1773013388990,0.07573391,66213.0,66201.0,0.02426984]
[1773013389265,0.00022001,66213.0,66201.0,0.02426984]
[1773013389465,0.00022001,66213.0,66202.0,0.02426984]
[1773013389674,0.00022001,66213.0,66204.0,0.02426984]
[1773013389980,0.0757347,66213.0,66200.0,0.02578984]
[1773013390334,0.0757347,66213.0,66198.0,0.07553098]
[1773013390533,0.02303591,66209.0,66199.0,0.00152]
[1773013390873,0.07552146,66207.0,66199.0,0.07704943]
[1773013391170,0.38216563,66209.0,66199.0,0.07704943]
[1773013391934,0.35912972,66209.0,66199.0,0.07704943]
[1773013392260,0.38216563,66209.0,66199.0,0.07704943]
[1773013393006,0.15060252,66208.0,66179.0,0.0757526]
[1773013393147,0.28361105,66199.0,66179.0,0.0757526]
[1773013393510,0.28361105,66197.0,66179.0,0.0757526]
[1773013393642,0.15210682,66198.0,66179.0,0.0757526]
[1773013393643,0.15058682,66196.0,66179.0,0.0002]
[1773013393857,0.28361105,66195.0,66176.0,0.07578592]
[1773013394059,0.28361105,66193.0,66176.0,0.07578592]
[1773013394255,0.02303591,66189.0,66176.0,0.00023]
[1773013394458,0.28361105,66186.0,66178.0,0.0002]
[1773013394669,0.28361105,66182.0,66178.0,0.0002]
[1773013394873,0.28361105,66180.0,66179.0,0.001]
[1773013395069,0.35916257,66180.0,66178.0,0.0002]
[1773013395300,0.28361105,66180.0,66178.0,0.0002]
[1773013395499,0.35916092,66182.0,66178.0,0.0002]
[1773013395797,0.00011865,66180.0,66178.0,0.0002]
[1773013395964,0.00111865,66180.0,66178.0,0.0002]
[1773013396803,0.00011865,66180.0,66178.0,0.0002]
[1773013397574,0.00111865,66180.0,66178.0,0.0002]
[1773013397775,0.00011865,66180.0,66178.0,0.0002]
[1773013397977,0.00111865,66180.0,66178.0,0.0002]
[1773013398336,0.00111865,66180.0,66176.0,0.00023]
[1773013398564,0.00111865,66180.0,66176.0,0.07578607]
[1773013399000,0.07553491,66195.0,66176.0,0.07578607]
[1773013399225,0.30664696,66193.0,66177.0,0.02426984]
[1773013399428,0.15026295,66192.0,66176.0,0.07770142]
[1773013399609,0.28361105,66186.0,66176.0,0.07618142]
[1773013399831,0.28361105,66184.0,66176.0,0.07618142]
[1773013400168,0.00152,66186.0,66176.0,0.07618142]
[1773013400365,0.30664696,66185.0,66176.0,0.07618142]
[1773013400569,0.28361105,66185.0,66176.0,0.07618135]
[1773013400777,0.28361105,66183.0,66176.0,0.00062535]
[1773013400998,0.28361105,66183.0,66172.0,0.07575994]
[1773013400999,0.02303591,66180.0,66170.0,0.08099282]
[1773013401165,0.30664696,66179.0,66172.0,0.07555994]
[1773013401602,0.38220045,66179.0,66172.0,0.07555994]
[1773013402301,0.07707156,66180.0,66172.0,0.07555994]
[1773013402573,0.00152,66180.0,66172.0,0.07555994]
[1773013402781,0.00152,66180.0,66172.0,0.09982978]
[1773013403150,0.00152,66180.0,66176.0,0.0002]
[1773013403346,0.00174001,66180.0,66176.0,0.0002]
[1773013403927,0.00022001,66187.0,66177.0,0.02426984]
[1773013404531,0.07553172,66198.0,66177.0,0.02426984]
[1773013404737,0.00152,66195.0,66180.0,0.27117249]
[1773013404953,0.00152,66195.0,66181.0,0.02426984]
[1773013405246,0.00152,66195.0,66181.0,0.02578984]
[1773013405468,0.07575893,66200.0,66183.0,0.02426984]
[1773013405681,0.07575893,66200.0,66186.0,0.02426984]
[1773013405899,0.07575893,66200.0,66188.0,0.02426984]
[1773013406112,0.07727893,66200.0,66188.0,0.02426984]
[1773013406581,0.03941118,66200.0,66188.0,0.02426984]
[1773013406789,0.07552751,66202.0,66188.0,0.02426984]
[1773013406932,0.07552623,66203.0,66188.0,0.02426984]
[1773013407128,0.00152,66202.0,66188.0,0.02426984]
[1773013407554,0.00152,66201.0,66188.0,0.02426984]
[1773013407795,0.07704029,66208.0,66192.0,0.27117249]
[1773013407987,0.07704029,66208.0,66193.0,0.02578984]
[1773013408189,0.38368725,66208.0,66193.0,0.02578984]
[1773013408683,0.30816696,66208.0,66193.0,0.02578984]
[1773013408885,0.00039633,66208.0,66193.0,0.02578984]
[1773013409092,0.00039633,66208.0,66195.0,0.02426984]
[1773013409823,0.00039633,66208.0,66196.0,0.07553326]
[1773013410075,0.00039633,66208.0,66197.0,0.02426984]
[1773013410573,0.00022001,66213.0,66199.0,0.27117249]
[1773013410732,0.28361105,66212.0,66196.0,0.07553326]
[1773013410924,0.02303591,66211.0,66198.0,0.00152]
[1773013411147,0.30664696,66211.0,66198.0,0.00152]
[1773013411282,0.30816696,66211.0,66198.0,0.00152]
[1773013411890,0.30816696,66211.0,66199.0,0.07552984]
[1773013411891,0.38368423,66211.0,66199.0,0.07552984]
[1773013412093,0.30664696,66210.0,66199.0,0.07552984]
[1773013412451,0.00022001,66208.0,66199.0,0.07552984]
[1773013413120,0.00022001,66208.0,66200.0,0.02426984]
[1773013414212,0.00022001,66208.0,66201.0,0.07552756]
[1773013414429,0.00152,66211.0,66202.0,0.02426984]
[1773013414860,1e-08,66216.0,66203.0,0.26480687]
[1773013415080,1e-08,66216.0,66206.0,0.02426984]
[1773013416275,1e-08,66216.0,66207.0,0.07552071]
[1773013416633,1e-08,66216.0,66207.0,0.09979055]
[1773013420989,0.29162533,66215.0,66205.0,1.64e-06]
[1773013421206,0.022365,66212.0,66190.0,0.07554011]
[1773013421419,0.022365,66208.0,66187.0,0.02384336]
[1773013421640,0.022365,66204.0,66194.0,0.0002]
[1773013421890,0.29162533,66202.0,66194.0,0.0002]
[1773013422118,0.26926033,66198.0,66187.0,0.0002]
[1773013422343,0.29162533,66196.0,66187.0,0.0002]
[1773013422772,0.29162533,66196.0,66190.0,0.001]
[1773013423205,0.29162533,66196.0,66187.0,0.0002]
[1773013423382,0.0755344,66195.0,66187.0,0.0002]
[1773013423611,0.0978994,66195.0,66187.0,0.0002]
[1773013425077,0.0755344,66195.0,66187.0,0.0002]
[1773013425454,0.0755344,66196.0,66187.0,0.0002]
[1773013427241,0.07563397,66212.0,66190.0,0.02384336]
[1773013427420,0.00011869,66212.0,66195.0,0.02384336]
[1773013427623,0.00152,66211.0,66197.0,0.02384336]
[1773013428022,0.00011869,66212.0,66197.0,0.02384336]
[1773013428257,0.00152,66210.0,66197.0,0.02384336]
[1773013429054,0.26926033,66207.0,66194.0,0.00152]
[1773013429256,0.00152,66210.0,66193.0,0.07705668]
[1773013429257,0.26926033,66203.0,66193.0,0.07705668]
[1773013429461,0.29162533,66203.0,66193.0,0.07705668]
[1773013429670,0.29162533,66200.0,66189.0,0.00152]
[1773013430344,0.29162533,66200.0,66187.0,0.07574353]
[1773013430542,0.17456673,66200.0,66188.0,0.00152]
[1773013430749,0.07552641,66202.0,66188.0,0.00152]
[1773013430947,0.00152,66204.0,66189.0,0.26480687]
[1773013431119,0.07552369,66205.0,66192.0,0.02384336]
[1773013431672,0.00152,66208.0,66193.0,0.09938004]
[1773013431849,0.00152,66207.0,66193.0,0.07553668]
[1773013432065,0.00152,66207.0,66193.0,0.09938004]
[1773013432807,0.00152,66207.0,66193.0,0.10090004]
[1773013433727,0.07552185,66206.0,66193.0,0.10090004]
[1773013434266,0.07704185,66206.0,66193.0,0.10090004]
[1773013434593,0.07552185,66206.0,66193.0,0.10090004]
[1773013434797,0.07704185,66206.0,66193.0,0.10090004]
[1773013436029,0.07704185,66206.0,66193.0,0.10110004]
[1773013436229,0.07552168,66208.0,66193.0,0.10110004]
[1773013436230,0.07552168,66208.0,66194.0,0.02384336]
[1773013437230,0.26926033,66206.0,66192.0,0.07553668]
[1773013437430,0.022365,66203.0,66193.0,0.07553668]
[1773013437655,0.26926033,66202.0,66193.0,0.07553668]
[1773013437976,0.022365,66200.0,66193.0,0.07553668]
[1773013438124,0.022365,66200.0,66192.0,0.07553668]
[1773013438318,0.022365,66200.0,66192.0,0.00152]
[1773013438525,0.07552763,66201.0,66192.0,0.00152]
[1773013438724,0.07552763,66201.0,66190.0,0.00152]
[1773013439837,0.07552763,66201.0,66189.0,0.02536336]
[1773013440418,0.09789187,66202.0,66190.0,0.07554011]
[1773013440618,0.00152,66208.0,66194.0,0.26480687]
[1773013440818,0.26926033,66207.0,66191.0,0.02384336]
[1773013441004,0.022365,66206.0,66191.0,0.02384336]
[1773013441203,0.022365,66204.0,66190.0,0.07554011]
[1773013441552,0.00152,66208.0,66190.0,0.07554011]
[1773013441553,0.26926033,66199.0,66190.0,0.07554011]
[1773013441702,0.022365,66197.0,66190.0,0.07554011]
[1773013442344,0.09789759,66197.0,66187.0,0.0002]
[1773013442546,0.09789759,66197.0,66188.0,0.00152]
[1773013443914,0.09789759,66197.0,66187.0,0.0002]
[1773013444048,0.07553259,66197.0,66187.0,0.00172]
[1773013444236,0.07704648,66202.0,66188.0,0.2688808]
[1773013444441,0.07704648,66202.0,66190.0,0.02384336]
[1773013444442,0.07704649,66202.0,66190.0,0.02384336]
[1773013444812,0.28436458,66201.0,66189.0,0.07554125]
[1773013445023,0.022365,66199.0,66189.0,0.07554125]
[1773013445211,0.022365,66197.0,66188.0,0.07554217]
[1773013446484,0.022365,66197.0,66187.0,0.0002]
[1773013446485,0.07553326,66196.0,66187.0,0.0002]
[1773013446881,0.07004151,66196.0,66187.0,0.0002]
[1773013447106,0.02132857,66194.0,66180.0,0.0002]
[1773013447332,0.00152,66195.0,66180.0,0.00016]
[1773013447333,0.27025628,66191.0,66180.0,0.00016]
[1773013447564,0.02132857,66188.0,66180.0,0.00016]
[1773013447770,0.29158485,66188.0,66180.0,0.00016]
[1773013448343,0.07554353,66187.0,66180.0,0.00016]
[1773013448567,0.07554353,66187.0,66180.0,0.00055633]
[1773013449164,0.07554353,66187.0,66179.0,0.0002]
[1773013449165,0.36790048,66187.0,66179.0,0.0002]
[1773013449364,0.36829608,66187.0,66179.0,0.0002]
[1773013450001,0.27025628,66186.0,66179.0,0.0002]
[1773013451506,0.07554581,66185.0,66179.0,0.0002]
[1773013452011,0.27025628,66184.0,66163.0,0.0002289]
[1773013452194,0.29235695,66179.0,66163.0,0.07579959]
[1773013452385,0.27025628,66177.0,66163.0,0.0002289]
[1773013452585,0.27025628,66177.0,66162.0,0.07557093]
[1773013452784,0.27025628,66177.0,66157.0,0.07557779]
[1773013453281,0.27025628,66175.0,66157.0,0.07557779]
[1773013453597,0.07555837,66174.0,66166.0,0.0002]
[1773013454121,0.07555497,66177.0,66166.0,0.0002]
[1773013454122,0.00152,66177.0,66167.0,0.02096205]
[1773013454536,0.00152,66179.0,66167.0,0.02096205]
[1773013454691,0.00152,66179.0,66168.0,0.02096205]
[1773013454905,0.00152,66180.0,66169.0,0.02096205]
[1773013455251,0.00152,66185.0,66172.0,0.27504261]
[1773013455530,0.00152,66185.0,66173.0,0.02096205]
[1773013455734,0.077066,66185.0,66174.0,0.07555837]
[1773013455967,0.07706643,66185.0,66175.0,0.02096205]
[1773013456342,0.07571407,66186.0,66175.0,0.02096205]
[1773013457713,0.07571407,66186.0,66177.0,0.02096205]
[1773013458519,0.0001684,66186.0,66177.0,0.02096205]
[1773013458716,0.00152,66189.0,66180.0,0.27504261]
[1773013458899,0.00152,66189.0,66181.0,0.02096205]
[1773013459097,0.07706131,66189.0,66181.0,0.02096205]
[1773013459309,0.07553955,66191.0,66181.0,0.02096205]